bitfinex/quotes_SOLUSD_20240703
["timestamp","ask_amount","ask_price","bid_price","bid_amount"]
[1720036613229,7.1308,140.24,140.19,25.17796711]
[1720036613399,7.1314,140.23,140.19,0.38226711]
[1720036613724,7.1317,140.22,140.19,0.38226711]
[1720036614718,7.1313,140.23,140.19,0.38226711]
[1720036615531,7.1306,140.25,140.19,7.51536711]
[1720036615817,45.2233,140.27,140.19,7.51536711]
[1720036616025,7.131,140.24,140.19,7.51536711]
[1720036616406,7.131,140.24,140.2,7.1325]
[1720036616597,7.1304,140.25,140.21,0.34]
[1720036618124,7.1306,140.24,140.21,0.34]
[1720036618637,7.1306,140.24,140.2,7.4726]
[1720036618818,7.1306,140.24,140.2,0.34]
[1720036619126,7.1306,140.24,140.2,7.4726]
[1720036619296,7.1306,140.24,140.2,0.17]
[1720036619502,7.1324,140.21,140.19,0.04226711]
[1720036619735,17.8276,140.24,140.19,0.04226711]
[1720036619904,7.1326,140.2,140.19,0.04226711]
[1720036620609,7.1318,140.22,140.19,0.04226711]
[1720036621212,7.1323,140.21,140.19,0.04226711]
[1720036622330,7.1318,140.22,140.19,0.04226711]
[1720036623317,17.8276,140.24,140.19,0.04226711]
[1720036623516,7.1323,140.21,140.19,0.04226711]
[1720036624021,17.8276,140.24,140.19,0.04226711]
[1720036624218,7.1318,140.22,140.19,0.04226711]
[1720036624917,7.1322,140.21,140.19,0.04226711]
[1720036626128,7.1316,140.22,140.19,0.04226711]
[1720036628335,7.1322,140.21,140.19,0.04226711]
[1720036629706,17.8276,140.24,140.19,0.04226711]
[1720036630017,7.1323,140.21,140.19,0.04226711]
[1720036630330,17.8276,140.24,140.19,0.04226711]
[1720036630627,7.1316,140.22,140.19,0.04226711]
[1720036630931,7.1323,140.21,140.19,0.04226711]
[1720036632817,17.8276,140.24,140.19,0.04226711]
[1720036632818,20.8426,140.2,140.19,0.04226711]
[1720036633220,7.1326,140.2,140.19,0.04226711]
[1720036633419,20.8426,140.2,140.19,0.04226711]
[1720036634139,7.1323,140.21,140.19,0.04226711]
[1720036634310,7.1326,140.2,140.19,0.04226711]
[1720036635139,7.1323,140.21,140.19,0.04226711]
[1720036637723,20.8426,140.2,140.19,0.04226711]
[1720036638938,13.71,140.2,140.19,0.04226711]
[1720036639124,7.1326,140.2,140.19,0.04226711]
[1720036639832,20.8423,140.21,140.19,0.04226711]
[1720036640151,7.1326,140.2,140.19,0.04226711]
[1720036642030,20.8422,140.21,140.19,0.04226711]
[1720036642234,7.1322,140.21,140.19,0.04226711]
[1720036642538,7.1326,140.2,140.19,0.04226711]
[1720036642737,20.842,140.22,140.19,0.04226711]
[1720036643033,17.8339,140.34,140.19,0.04226711]
[1720036643034,16.4344,140.29,140.24,7.1305]
[1720036643243,6.41840945,140.32,140.25,7.1301]
[1720036643541,20.8372,140.31,140.26,13.71]
[1720036643841,7.1276,140.3,140.26,13.71]
[1720036644044,30.1569,140.33,140.27,13.71]
[1720036644344,36.7405,140.33,140.28,0.34]
[1720036644538,7.1272,140.31,140.28,0.34]
[1720036645032,13.71,140.31,140.21,154.84]
[1720036645213,7.1287,140.28,140.23,7.1309]
[1720036645417,7.1287,140.28,140.25,13.71]
[1720036645725,23.0305,140.33,140.26,0.17]
[1720036645924,23.56755347,140.35,140.26,0.17]
[1720036646118,23.56755347,140.35,140.26,17.8233]
[1720036646330,7.1267,140.32,140.27,7.4687]
[1720036646519,22.1254,140.37,140.28,17.8204]
[1720036646720,7.1252,140.35,140.29,0.34]
[1720036646941,7.1252,140.35,140.3,7.1275]
[1720036647241,7.1252,140.35,140.29,7.4679]
[1720036647458,7.1255,140.34,140.29,7.4679]
[1720036647745,7.126,140.33,140.29,0.34]
[1720036648820,7.1256,140.34,140.29,7.468]
[1720036649748,7.1256,140.34,140.29,0.34]
[1720036650732,7.1256,140.34,140.29,7.468]
[1720036651742,7.1255,140.34,140.29,7.468]
[1720036651938,7.1255,140.34,140.29,7.4678]
[1720036652140,22.1254,140.37,140.29,7.4678]
[1720036652141,7.1262,140.33,140.29,0.34]
[1720036652540,7.1257,140.34,140.29,7.4678]
[1720036653126,7.126,140.33,140.29,7.4678]
[1720036653925,22.1254,140.37,140.29,7.4678]
[1720036653926,7.1257,140.34,140.29,7.4678]
[1720036655963,33.79840945,140.39,140.3,17.8188]
[1720036656144,7.1243,140.37,140.31,0.34]
[1720036656343,7.1243,140.37,140.32,0.17]
[1720036656654,7.1243,140.37,140.32,24.9424]
[1720036656953,34.3566,140.41,140.33,16.975]
[1720036657141,7.1242,140.37,140.33,16.975]
[1720036658026,7.1236,140.38,140.33,16.975]
[1720036658245,7.1236,140.38,140.33,24.1008]
[1720036658442,7.1231,140.39,140.34,7.1253]
[1720036658646,7.1231,140.39,140.35,0.34]
[1720036659138,7.1235,140.38,140.35,0.34]
[1720036659462,7.1235,140.38,140.34,0.34]
[1720036660030,7.1235,140.38,140.34,7.4655]
[1720036660458,7.1235,140.38,140.34,0.34]
[1720036661159,7.1223,140.41,140.36,7.124]
[1720036661339,7.1223,140.41,140.37,0.34]
[1720036663336,7.1225,140.4,140.37,0.34]
[1720036663844,7.1221,140.41,140.37,0.34]
[1720036664042,7.1225,140.4,140.37,0.34]
[1720036665050,7.1222,140.41,140.37,7.4639]
[1720036665352,7.1218,140.42,140.37,7.4639]
[1720036665559,7.1221,140.41,140.37,0.34]
[1720036666159,7.1225,140.4,140.37,0.34]
[1720036666454,6.5576,140.46,140.38,17.8084]
[1720036666658,7.1213,140.43,140.39,0.34]
[1720036667453,7.1213,140.43,140.39,7.4628]
[1720036667964,7.1213,140.43,140.4,13.66]
[1720036668561,13.66,140.45,140.4,13.66]
[1720036668743,13.66,140.43,140.34,6.4866]
[1720036669060,13.66,140.4,140.35,0.17]
[1720036669271,13.66,140.38,140.3,6.0011]
[1720036669437,7.1269,140.32,140.3,6.0011]
[1720036669638,13.66,140.36,140.3,6.0011]
[1720036669639,7.125,140.36,140.3,6.0011]
[1720036669858,7.1241,140.37,140.3,6.0011]
[1720036670184,7.1241,140.37,140.32,7.1265]
[1720036670362,7.1244,140.37,140.32,7.1265]
[1720036670539,42.5701,140.41,140.3,6.0011]
[1720036671164,7.1232,140.39,140.32,17.8157]
[1720036671370,7.1226,140.4,140.34,7.1253]
[1720036671559,7.1226,140.4,140.35,7.465]
[1720036671940,7.1226,140.4,140.35,0.34]
[1720036672136,7.1231,140.39,140.35,0.34]
[1720036672341,7.1235,140.38,140.34,0.34]
[1720036672540,7.1231,140.39,140.34,7.4654]
[1720036673543,7.1226,140.4,140.34,0.34]
[1720036673743,7.1226,140.4,140.35,0.17]
[1720036673958,7.1232,140.39,140.35,0.34]
[1720036674967,7.1232,140.39,140.34,0.34]
[1720036675154,7.1242,140.37,140.34,0.34]
[1720036675462,7.1242,140.37,140.32,24.9421]
[1720036675463,7.1242,140.37,140.33,0.34]
[1720036675640,7.1242,140.37,140.33,0.17]
[1720036676067,7.1236,140.38,140.33,7.296]
[1720036676257,33.0156,140.41,140.33,0.17]
[1720036676442,7.1236,140.38,140.33,7.296]
[1720036677764,7.1241,140.37,140.33,0.17]
[1720036677960,7.1241,140.37,140.33,0.34]
[1720036678166,33.0156,140.41,140.33,0.34]
[1720036678346,7.1233,140.39,140.34,7.1254]
[1720036678747,7.1235,140.38,140.34,7.1254]
[1720036679873,7.1235,140.38,140.33,7.4658]
[1720036680565,7.1241,140.37,140.33,0.34]
[1720036682088,7.1241,140.37,140.33,7.466]
[1720036682379,7.1237,140.38,140.33,7.466]
[1720036683287,7.1247,140.36,140.29,33.0659]
[1720036683483,6.3273,140.4,140.29,15.2469]
[1720036683797,7.1237,140.38,140.33,7.1258]
[1720036683958,7.1241,140.37,140.32,24.9419]
[1720036684469,17.8078,140.39,140.31,7.1267]
[1720036684667,17.8078,140.39,140.32,7.1265]
[1720036684881,7.1237,140.38,140.33,7.1259]
[1720036685262,7.1241,140.37,140.32,24.9426]
[1720036685467,7.1245,140.36,140.32,17.8163]
[1720036685671,7.1245,140.36,140.32,24.9428]
[1720036685889,7.1227,140.4,140.35,7.1249]
[1720036686063,7.1231,140.39,140.35,7.1249]
[1720036686263,7.1231,140.39,140.34,24.9387]
[1720036686464,7.1235,140.38,140.34,24.9387]
[1720036686760,33.9813,140.44,140.33,0.34]
[1720036686967,7.1211,140.43,140.38,7.1231]
[1720036687170,7.1217,140.42,140.37,7.1238]
[1720036687465,7.122,140.41,140.37,7.1238]
[1720036687667,7.1217,140.42,140.37,7.1238]
[1720036687869,7.1217,140.42,140.38,0.34]
[1720036688075,7.1221,140.41,140.38,0.34]
[1720036688785,7.1216,140.42,140.38,0.34]
[1720036689086,7.1211,140.43,140.38,0.34]
[1720036689387,7.121,140.43,140.39,7.1228]
[1720036689965,12.21739684,140.48,140.39,17.8073]
[1720036690165,7.1203,140.45,140.4,7.4623]
[1720036690874,7.1206,140.44,140.4,7.4623]
[1720036691081,7.1197,140.46,140.41,24.9263]
[1720036691274,7.1199,140.45,140.41,24.9263]
[1720036691588,7.1199,140.45,140.41,17.8045]
[1720036691757,7.1199,140.45,140.42,13.66]
[1720036692592,7.1192,140.47,140.43,13.66]
[1720036692763,24.413,140.52,140.43,17.802]
[1720036692966,17.7917,140.52,140.46,13.66]
[1720036693182,7.1184,140.48,140.46,13.66]
[1720036693483,7.1184,140.48,140.45,13.66]
[1720036693684,7.1184,140.48,140.46,13.66]
[1720036693984,31.4517,140.52,140.47,13.66]
[1720036694189,7.1177,140.5,140.47,13.66]
[1720036695272,31.4517,140.52,140.47,13.66]
[1720036695470,7.118,140.49,140.46,13.66]
[1720036695665,7.118,140.49,140.47,13.66]
[1720036695866,17.7917,140.52,140.44,7.0035]
[1720036696170,7.1181,140.49,140.47,13.66]
[1720036696376,7.1181,140.49,140.44,14.1237]
[1720036696572,13.66,140.51,140.46,13.66]
[1720036696962,7.1186,140.48,140.46,13.66]
[1720036697166,13.66,140.51,140.46,13.66]
[1720036697363,7.1176,140.5,140.46,13.66]
[1720036697669,7.1172,140.51,140.47,0.17]
[1720036697886,7.1172,140.51,140.48,13.66]
[1720036698388,7.1174,140.5,140.48,13.66]
[1720036699166,7.1171,140.51,140.48,13.66]
[1720036699367,7.1175,140.5,140.48,13.66]
[1720036699574,7.1169,140.51,140.48,13.66]
[1720036699787,7.1175,140.5,140.48,13.66]
[1720036700595,7.117,140.51,140.48,13.66]
[1720036700891,7.1175,140.5,140.48,13.66]
[1720036701481,7.1181,140.49,140.47,0.34]
[1720036701686,7.1181,140.49,140.47,13.66]
[1720036701890,7.1181,140.49,140.46,0.34]
[1720036702092,7.1186,140.48,140.46,0.34]
[1720036702284,7.1198,140.46,140.4,6.6597]
[1720036702479,7.1203,140.45,140.4,13.7818]
[1720036702795,7.1203,140.45,140.43,13.66]
[1720036702989,7.1196,140.46,140.43,13.66]
[1720036703666,7.1196,140.46,140.44,0.34]
[1720036704092,7.1201,140.45,140.41,16.6017]
[1720036704393,7.1193,140.47,140.43,13.66]
[1720036704690,7.1186,140.48,140.44,13.66]
[1720036705370,7.1194,140.46,140.42,17.8036]
[1720036705569,7.119,140.47,140.44,13.66]
[1720036705798,7.119,140.47,140.43,7.4609]
[1720036706091,7.119,140.47,140.45,13.66]
[1720036706295,7.119,140.47,140.44,13.66]
[1720036706479,7.1194,140.46,140.43,0.34]
[1720036706675,7.119,140.47,140.43,14.0]
[1720036707092,7.119,140.47,140.44,13.66]
[1720036708091,7.119,140.47,140.43,14.0]
[1720036708593,13.66,140.49,140.44,13.66]
[1720036709494,7.119,140.47,140.44,13.66]
[1720036710093,7.1195,140.46,140.44,13.66]
[1720036710398,7.1191,140.47,140.43,14.0]
[1720036710695,7.1191,140.47,140.44,13.66]
[1720036711101,7.1195,140.46,140.44,13.66]
[1720036711677,7.1195,140.46,140.43,0.34]
[1720036711878,7.1195,140.46,140.44,13.83]
[1720036712196,7.1195,140.46,140.43,13.66]
[1720036712381,7.1195,140.46,140.44,0.34]
[1720036713079,7.1195,140.46,140.44,14.0]
[1720036713579,7.1191,140.47,140.44,14.0]
[1720036714401,13.66,140.49,140.44,14.0]
[1720036714604,7.1189,140.47,140.44,14.0]
[1720036716399,7.1194,140.46,140.44,0.34]
[1720036716601,7.1194,140.46,140.44,14.0]
[1720036719390,7.1194,140.46,140.44,0.34]
[1720036719690,7.1194,140.46,140.45,13.66]
[1720036719891,7.119,140.47,140.45,13.66]
[1720036720497,7.1176,140.5,140.46,14.0]
[1720036720806,7.1176,140.5,140.48,13.66]
[1720036721188,17.7907,140.53,140.46,0.34]
[1720036721386,35.24890945,140.54,140.46,13.66]
[1720036721387,7.118,140.49,140.46,13.66]
[1720036721599,7.118,140.49,140.47,14.0]
[1720036721898,7.118,140.49,140.47,13.66]
[1720036724103,7.1176,140.5,140.47,13.66]
[1720036724416,17.7898,140.53,140.45,7.4599]
[1720036724417,7.117,140.51,140.48,14.0]
[1720036724599,7.117,140.51,140.48,13.66]
[1720036724902,7.1163,140.53,140.49,20.9479]
[1720036725111,7.117,140.51,140.49,13.66]
[1720036725297,7.117,140.51,140.48,13.66]
[1720036725499,7.117,140.51,140.49,0.34]
[1720036727304,7.1166,140.52,140.49,0.34]
[1720036728318,7.1174,140.5,140.49,0.17]
[1720036728611,32.9593,140.54,140.47,13.66]
[1720036728612,7.1171,140.51,140.47,13.66]
[1720036728918,7.1172,140.51,140.48,0.34]
[1720036729594,7.1166,140.52,140.48,0.34]
[1720036729806,7.1166,140.52,140.48,21.1184]
[1720036729991,7.1166,140.52,140.48,14.0]
[1720036730192,7.1169,140.51,140.48,14.0]
[1720036733601,7.1166,140.52,140.48,14.0]
[1720036733804,7.117,140.51,140.48,0.34]
[1720036734006,7.117,140.51,140.48,0.17]
[1720036734316,7.1174,140.5,140.46,24.9176]
[1720036734619,13.66,140.49,140.43,17.8013]
[1720036734821,13.66,140.49,140.44,13.66]
[1720036735326,7.119,140.47,140.44,13.66]
[1720036735614,7.1186,140.48,140.43,38.5821]
[1720036735819,20.7786,140.48,140.43,38.5821]
[1720036735993,7.1186,140.48,140.44,20.7804]
[1720036736200,20.778,140.49,140.44,13.66]
[1720036736398,20.7775,140.5,140.45,20.7796]
[1720036736610,7.1175,140.5,140.46,13.66]
[1720036737299,7.1171,140.51,140.46,20.7791]
[1720036737636,35.946,140.54,140.47,0.34]
[1720036737935,7.116,140.53,140.49,13.66]
[1720036738223,7.116,140.53,140.49,31.4545]
[1720036738595,7.1155,140.54,140.49,38.5721]
[1720036738830,7.1155,140.54,140.5,13.66]
[1720036739226,13.10221924,140.56,140.53,7.1158]
[1720036739227,0.8271537,140.56,140.53,7.1158]
[1720036739600,0.8271537,140.56,140.54,13.66]
[1720036739798,7.9415537,140.56,140.53,13.66]
[1720036740030,7.9415537,140.56,140.54,13.66]
[1720036740204,0.8271537,140.56,140.51,0.34]
[1720036740405,14.4871537,140.56,140.51,13.83]
[1720036740639,7.1155,140.54,140.49,7.1178]
[1720036740932,13.66,140.55,140.5,14.0]
[1720036741134,7.1164,140.52,140.5,0.34]
[1720036741304,7.1164,140.52,140.49,14.0]
[1720036741630,7.116,140.53,140.49,14.0]
[1720036742338,7.116,140.53,140.49,13.66]
[1720036742622,7.1164,140.52,140.48,38.5737]
[1720036742833,7.1164,140.52,140.48,24.9139]
[1720036743003,13.66,140.53,140.48,13.66]
[1720036743206,33.7350537,140.56,140.48,7.1181]
[1720036743405,7.1155,140.54,140.5,13.66]
[1720036743817,20.7749,140.55,140.5,20.7774]
[1720036744019,7.1154,140.54,140.5,20.7774]
[1720036744332,23.0636537,140.56,140.52,13.66]
[1720036744707,7.115,140.55,140.51,17.9621]
[1720036744908,7.115,140.55,140.51,31.6221]
[1720036745103,29.6089537,140.56,140.51,13.83]
[1720036745305,7.1154,140.54,140.51,13.83]
[1720036746145,13.66,140.53,140.45,23.8765]
[1720036746451,13.66,140.53,140.45,13.66]
[1720036746452,7.119,140.47,140.45,13.66]
[1720036746604,13.66,140.5,140.45,13.66]
[1720036746605,7.1184,140.48,140.45,13.66]
[1720036746902,13.66,140.48,140.41,13.62348477]
[1720036747104,16.1755,140.5,140.4,15.1051]
[1720036747351,20.7815,140.42,140.37,28.7651]
[1720036747632,13.66,140.44,140.37,15.1051]
[1720036747947,7.12,140.45,140.4,7.1224]
[1720036748237,7.1209,140.44,140.39,17.807]
[1720036748613,24.3173,140.48,140.39,24.9299]
[1720036748835,7.1211,140.43,140.38,7.1234]
[1720036749250,24.3173,140.48,140.39,7.1229]
[1720036749565,24.3173,140.48,140.38,17.8083]
[1720036749932,7.121,140.43,140.38,17.8083]
[1720036750130,27.33,140.46,140.33,7.39235802]
[1720036750358,7.1245,140.36,140.32,15.2034]
[1720036750529,6.0196,140.43,140.32,15.2034]
[1720036750861,7.1231,140.39,140.33,7.126]
[1720036751426,7.1226,140.4,140.34,7.1255]
[1720036751629,7.1226,140.4,140.33,17.8144]
[1720036751957,7.1226,140.4,140.34,7.1255]
[1720036752333,7.1231,140.39,140.34,7.1255]
[1720036752533,7.123,140.39,140.33,17.8144]
[1720036752770,23.8227,140.43,140.33,7.1259]
[1720036752771,15.659,140.4,140.33,7.1259]
[1720036752970,33.8843,140.37,140.3,7.39257816]
[1720036753260,6.5543,140.37,140.24,15.6577]
[1720036753557,6.5543,140.37,140.27,7.129]
[1720036753755,6.5543,140.37,140.28,7.1285]
[1720036753959,13.6788,140.37,140.27,27.33]
[1720036754154,15.659,140.4,140.27,27.33]
[1720036754155,15.659,140.4,140.28,17.8205]
[1720036754453,15.659,140.4,140.29,6.2714]
[1720036754631,15.659,140.4,140.31,15.9894]
[1720036755158,22.782,140.4,140.31,23.1161]
[1720036755328,22.782,140.4,140.32,0.34]
[1720036755329,7.125,140.35,140.32,0.34]
[1720036755531,7.1244,140.37,140.32,0.34]
[1720036755830,7.1231,140.39,140.32,0.34]
[1720036756358,6.4985,140.41,140.32,0.34]
[1720036756530,22.3544,140.44,140.32,0.34]
[1720036756731,7.1224,140.41,140.34,7.1254]
[1720036756936,7.1224,140.41,140.35,0.34]
[1720036757254,7.1225,140.4,140.35,0.34]
[1720036757435,22.3544,140.44,140.35,0.34]
[1720036757436,7.1219,140.42,140.35,7.4649]
[1720036757840,22.3544,140.44,140.35,0.34]
[1720036758144,7.1231,140.39,140.35,0.34]
[1720036758450,67.4859,140.44,140.34,0.34]
[1720036758626,7.1235,140.38,140.34,0.34]
[1720036758964,7.1229,140.4,140.33,18.1549]
[1720036759135,40.1559,140.44,140.33,17.8149]
[1720036759455,40.1559,140.44,140.32,27.33]
[1720036759456,67.4859,140.44,140.32,7.1263]
[1720036759661,7.1235,140.38,140.32,7.1263]
[1720036760170,7.1228,140.4,140.33,7.126]
[1720036760737,7.1198,140.46,140.4,7.1223]
[1720036760947,49.5652,140.52,140.41,7.4615]
[1720036761156,55.1418059,140.52,140.41,0.34]
[1720036761345,17.7935,140.51,140.41,0.34]
[1720036761553,17.7935,140.51,140.4,7.4624]
[1720036761855,7.1194,140.47,140.4,7.4624]
[1720036762039,22.2352,140.52,140.42,39.2292]
[1720036762232,6.93029664,140.53,140.42,39.2292]
[1720036762233,7.1175,140.5,140.43,34.7907]
[1720036762774,7.1176,140.5,140.43,7.4609]
[1720036762965,7.1169,140.51,140.44,7.1202]
[1720036763131,7.1164,140.52,140.45,7.4598]
[1720036763333,7.1164,140.52,140.46,0.34]
[1720036763830,7.1154,140.54,140.46,18.1381]
[1720036764034,7.1154,140.54,140.47,7.1184]
[1720036764237,7.1154,140.54,140.46,18.1381]
[1720036764238,7.1154,140.54,140.48,21.9748]
[1720036764537,0.8271537,140.56,140.48,0.34]
[1720036764843,7.1164,140.52,140.47,0.34]
[1720036765047,7.1164,140.52,140.46,0.34]
[1720036765446,0.8271537,140.56,140.46,0.34]
[1720036765654,45.1188,140.54,140.45,0.34]
[1720036765849,45.1188,140.54,140.47,0.17]
[1720036766056,45.1188,140.54,140.45,0.34]
[1720036766435,7.1175,140.5,140.45,0.34]
[1720036766631,15.2642,140.53,140.45,0.34]
[1720036766848,7.117,140.51,140.45,7.4597]
[1720036767256,7.1164,140.52,140.45,7.4597]
[1720036767457,7.1178,140.5,140.45,0.34]
[1720036767847,7.1169,140.51,140.45,7.4597]
[1720036768354,15.2642,140.53,140.45,0.34]
[1720036768660,7.1188,140.48,140.44,15.5892]
[1720036768836,6.0976,140.52,140.44,15.5892]
[1720036769034,6.0976,140.52,140.41,16.1899]
[1720036769233,33.4276,140.52,140.41,33.9939]
[1720036769661,7.1188,140.48,140.42,7.1214]
[1720036769851,7.1189,140.47,140.41,41.1158]
[1720036770247,7.1184,140.48,140.42,7.2913]
[1720036770756,33.4276,140.52,140.42,7.2913]
[1720036770757,15.2642,140.53,140.42,0.17]
[1720036770936,31.64105034,140.56,140.42,27.67]
[1720036770937,50.2272537,140.56,140.42,27.67]
[1720036771372,50.2272537,140.56,140.44,7.1202]
[1720036771373,7.1178,140.5,140.44,7.1202]
[1720036771657,7.1164,140.53,140.47,7.1188]
[1720036771864,7.1164,140.53,140.48,0.34]
[1720036772059,7.1164,140.52,140.48,0.34]
[1720036772260,22.8972537,140.56,140.48,0.34]
[1720036772457,7.116,140.53,140.48,22.5388]
[1720036772642,7.1155,140.54,140.48,22.5388]
[1720036773551,0.8271537,140.56,140.5,7.1173]
[1720036773760,0.8271537,140.56,140.51,7.4566]
[1720036774559,7.9415537,140.56,140.51,7.4566]
[1720036775313,7.9415537,140.56,140.51,0.34]
[1720036775463,7.1149,140.55,140.51,0.34]
[1720036775776,7.1149,140.55,140.48,15.0804]
[1720036775777,0.8271537,140.56,140.52,0.17]
[1720036775945,0.8271537,140.56,140.5,100.34]
[1720036776288,0.8271537,140.56,140.55,15.9848]
[1720036776440,0.8271537,140.56,140.55,16.1548]
[1720036776645,0.8271537,140.56,140.55,16.3248]
[1720036776951,0.8271537,140.56,140.55,23.4397]
[1720036777153,0.8271537,140.56,140.55,16.3248]
[1720036777748,0.8271537,140.56,140.55,23.4397]
[1720036778162,0.8271537,140.56,140.55,16.3248]
[1720036779868,0.8271537,140.56,140.55,23.4397]
[1720036780583,0.8271537,140.56,140.55,16.3248]
[1720036781275,0.8271537,140.56,140.55,23.4397]
[1720036782165,0.8271537,140.56,140.55,16.3248]
[1720036782582,0.8271537,140.56,140.55,16.1548]
[1720036782806,0.8271537,140.56,140.52,22.6737]
[1720036783499,7.9417537,140.56,140.52,22.6737]
[1720036783793,0.8271537,140.56,140.52,29.7899]
[1720036784684,0.8271537,140.56,140.52,22.6737]
[1720036784885,0.8271537,140.56,140.52,29.7897]
[1720036785081,0.8271537,140.56,140.53,0.34]
[1720036785285,0.8271537,140.56,140.53,7.4555]
[1720036786172,0.8271537,140.56,140.53,0.34]
[1720036786690,7.9417537,140.56,140.53,0.34]
[1720036787186,0.8271537,140.56,140.48,16.5609]
[1720036787601,0.8271537,140.56,140.52,7.1163]
[1720036788306,0.8271537,140.56,140.48,16.5609]
[1720036788491,0.8271537,140.56,140.54,24.9035]
[1720036788672,0.8271537,140.56,140.54,7.1153]
[1720036788863,0.8271537,140.56,140.55,0.34]
[1720036789369,0.8271537,140.56,140.55,0.17]
[1720036790084,0.8271537,140.56,140.54,0.34]
[1720036790592,0.8271537,140.56,140.54,17.7878]
[1720036790886,0.8271537,140.56,140.55,0.34]
[1720036791072,0.8271537,140.56,140.55,7.4549]
[1720036791574,0.8271537,140.56,140.55,23.6421]
[1720036791772,15.3341,140.65,140.55,23.6421]
[1720036791773,7.1101,140.65,140.58,17.7824]
[1720036791978,7.1101,140.65,140.6,7.1122]
[1720036792192,7.1109,140.63,140.61,0.34]
[1720036792389,7.1109,140.63,140.61,0.17]
[1720036792586,21.6775,140.69,140.61,0.17]
[1720036793176,27.46960504,140.69,140.61,0.17]
[1720036793387,7.1109,140.63,140.61,0.17]
[1720036793788,7.1104,140.64,140.61,0.17]
[1720036793971,7.1104,140.64,140.6,0.17]
[1720036794170,17.7737,140.66,140.6,0.17]
[1720036794376,17.7737,140.66,140.59,0.34]
[1720036794578,7.1109,140.63,140.59,0.34]
[1720036795092,7.111,140.63,140.59,0.34]
[1720036795297,17.7737,140.66,140.59,0.34]
[1720036795474,7.1115,140.62,140.59,0.34]
[1720036796087,7.1115,140.62,140.59,0.17]
[1720036796297,7.1115,140.62,140.58,0.34]
[1720036796471,7.1121,140.61,140.58,0.34]
[1720036796671,7.1121,140.61,140.57,0.34]
[1720036797078,7.1124,140.6,140.57,0.34]
[1720036797273,7.1109,140.63,140.58,0.17]
[1720036797466,7.1109,140.63,140.58,7.2833]
[1720036797671,7.1113,140.62,140.58,0.17]
[1720036797871,7.1113,140.62,140.59,0.17]
[1720036798088,7.1113,140.62,140.58,0.17]
[1720036798294,7.1109,140.63,140.58,7.2832]
[1720036798587,7.1109,140.63,140.59,0.17]
[1720036799475,7.1114,140.62,140.59,0.17]
[1720036799671,7.1114,140.62,140.58,0.34]
[1720036800083,17.7765,140.64,140.58,0.17]
[1720036800266,17.7729,140.67,140.56,17.7857]
[1720036800472,7.1112,140.63,140.58,7.1131]
[1720036801177,7.1116,140.62,140.56,24.8996]
[1720036801373,7.1123,140.6,140.56,17.7857]
[1720036801770,17.7749,140.65,140.56,17.7857]
[1720036801974,17.7715,140.68,140.58,17.7832]
[1720036802190,17.7739,140.66,140.58,17.7832]
[1720036802590,7.1108,140.63,140.58,24.8964]
[1720036802976,7.1108,140.63,140.59,7.1128]